fUST/lending_fUST_20250917
["ID","MTS","AMOUNT","RATE_DAILY","PERIOD"]
[385801601,1758048660249,-480.0,0.00022191,3]
[385801602,1758048660258,-480.0,0.00022191,3]
[385801603,1758048660267,-480.0,0.00022191,3]
[385801604,1758048660277,-480.0,0.00022191,3]
[385801605,1758048660287,-480.0,0.00022191,3]
[385801606,1758048660296,-480.0,0.00022191,3]
[385801607,1758048660306,-480.0,0.00022191,3]
[385801608,1758048660315,-480.0,0.00022191,3]
[385801609,1758048660325,-480.0,0.00022191,3]
[385801610,1758048660334,-480.0,0.00022191,3]
[385801611,1758048660344,-510.47,0.00022191,3]
[385801612,1758048660354,-2064.64,0.00022191,3]
[385801613,1758048660363,-480.0,0.00022191,3]
[385801614,1758048660373,-480.0,0.00022191,3]
[385801615,1758048660382,-480.0,0.00022191,3]
[385801616,1758048660392,-480.0,0.00022191,3]
[385801617,1758048660401,-480.0,0.00022191,3]
[385801618,1758048660410,-480.0,0.00022191,3]
[385801619,1758048660420,-480.0,0.00022191,3]
[385801620,1758048660429,-480.0,0.00022191,3]
[385801621,1758048660439,-480.0,0.00022191,3]
[385801622,1758048660448,-480.0,0.00022191,3]
[385801623,1758048660457,-480.0,0.00022191,3]
[385801624,1758048660466,-480.0,0.00022191,3]
[385801625,1758048660476,-1811.84,0.00022191,3]
[385801626,1758048660485,-492.20820192,0.00022191,3]
[385801627,1758048660494,-480.0,0.00022191,3]
[385801628,1758048660504,-480.0,0.00022191,3]
[385801629,1758048660513,-480.0,0.00022191,3]
[385801630,1758048660522,-480.0,0.00022191,3]
[385801631,1758048660531,-480.0,0.00022191,3]
[385801632,1758048660541,-1388.05,0.00022191,3]
[385801633,1758048660551,-480.0,0.00022191,3]
[385801634,1758048660560,-480.0,0.00022191,3]
[385801635,1758048660569,-480.0,0.00022191,3]
[385801636,1758048660578,-480.0,0.00022191,3]
[385801637,1758048660587,-480.0,0.00022191,3]
[385801638,1758048660596,-488.42,0.00022191,3]
[385801639,1758048660605,-480.0,0.00022191,3]
[385801640,1758048660615,-480.0,0.00022191,3]
[385801641,1758048660623,-480.0,0.00022191,3]
[385801642,1758048660633,-480.0,0.00022191,3]
[385801643,1758048660642,-480.0,0.00022191,3]
[385801644,1758048660651,-480.0,0.00022191,3]
[385801645,1758048660660,-480.0,0.00022191,3]
[385801646,1758048660669,-480.0,0.00022191,3]
[385801647,1758048660679,-480.0,0.00022191,3]
[385801648,1758048660688,-480.0,0.00022191,3]
[385801649,1758048660697,-480.0,0.00022191,3]
[385801650,1758048660706,-488.9948695,0.00022191,3]
[385801651,1758048660716,-480.0,0.00022191,3]
[385801652,1758048660725,-3095.8,0.00022191,3]
[385801653,1758048660734,-480.0,0.00022191,3]
[385801654,1758048660743,-480.0,0.00022191,3]
[385801655,1758048660752,-610.65,0.00022191,3]
[385801656,1758048660761,-489.98,0.00022191,3]
[385801657,1758048660771,-480.0,0.00022191,3]
[385801658,1758048660780,-480.0,0.00022191,3]
[385801659,1758048660789,-480.0,0.00022191,3]
[385801660,1758048660799,-480.0,0.00022191,3]
[385801661,1758048660808,-480.0,0.00022191,3]
[385801662,1758048660817,-480.0,0.00022191,3]
[385801663,1758048660826,-482.41,0.00022191,3]
[385801664,1758048660835,-480.0,0.00022191,3]
[385801665,1758048660844,-624.2,0.00022191,3]
[385801666,1758048660854,-480.0,0.00022191,3]
[385801667,1758048660863,-533.69,0.00022191,3]
[385801668,1758048660872,-480.0,0.00022191,3]
[385801669,1758048660882,-480.0,0.00022191,3]
[385801670,1758048660892,-251.84508973,0.00022191,3]
[385801671,1758048660901,-1505.7,0.00022191,3]
[385801672,1758048660911,-480.0,0.00022191,3]
[385801673,1758048660920,-480.0,0.00022191,3]
[385801674,1758048660929,-480.0,0.00022191,3]
[385801675,1758048660938,-480.0,0.00022191,3]
[385801676,1758048660948,-480.0,0.00022191,3]
[385801677,1758048660957,-515.02,0.00022191,3]
[385801678,1758048660966,-502.05436363,0.00022191,3]
[385801679,1758048660975,-480.0,0.00022191,3]
[385801680,1758048660985,-7171.03,0.00022191,3]
[385801681,1758048660994,-1449.96,0.00022191,3]
[385801682,1758048661003,-568.35,0.00022191,3]
[385801683,1758048661013,-480.0,0.00022191,3]
[385801684,1758048661026,-480.0,0.00022191,3]
[385801685,1758048661035,-480.0,0.00022191,3]
[385801686,1758048661045,-480.0,0.00022191,3]
[385801687,1758048661055,-480.0,0.00022191,3]
[385801688,1758048661064,-480.0,0.00022191,3]
[385801689,1758048661074,-480.0,0.00022191,3]
[385801690,1758048661083,-1505.76,0.00022191,3]
[385801691,1758048661092,-1076.45,0.00022191,3]
[385801692,1758048661102,-480.0,0.00022191,3]
[385801693,1758048661112,-480.0,0.00022191,3]
[385801694,1758048661121,-480.0,0.00022191,3]
[385801695,1758048661130,-480.0,0.00022191,3]
[385801696,1758048661139,-480.0,0.00022191,3]
[385801697,1758048661149,-480.0,0.00022191,3]
[385801698,1758048661158,-480.0,0.00022191,2]
[385801699,1758048661168,-480.0,0.00022191,3]
[385801700,1758048661177,-480.0,0.00022191,3]
[385801701,1758048661187,-537.21,0.00022191,3]
[385801702,1758048661196,-480.0,0.00022191,3]
[385801703,1758048661270,-480.0,0.00022191,3]
[385801704,1758048661279,-1412.92,0.00022191,3]
[385801705,1758048661288,-480.0,0.00022191,3]
[385801706,1758048661297,-480.0,0.00022191,3]
[385801707,1758048661306,-613.44,0.00022191,3]
[385801708,1758048661315,-480.0,0.00022191,3]
[385801709,1758048661324,-480.0,0.00022191,3]
[385801710,1758048661333,-480.0,0.00022191,3]
[385801711,1758048661342,-480.0,0.00022191,3]
[385801712,1758048661351,-480.0,0.00022191,3]
[385801713,1758048661360,-480.0,0.00022191,3]
[385801714,1758048661369,-480.0,0.00022191,3]
[385801715,1758048661378,-491.28283836,0.00022191,3]
[385801716,1758048661387,-480.0,0.00022191,3]
[385801717,1758048661396,-480.0,0.00022191,3]
[385801718,1758048661405,-480.0,0.00022191,3]
[385801719,1758048661414,-591.91,0.00022191,3]
[385801720,1758048661423,-739.12,0.000222,7]
[385801721,1758048661432,-203.82015617,0.00022201,2]
[385801722,1758048661442,-678.93395297,0.00022215,2]
[385801723,1758048661451,-4108.0,0.00022215,2]
[385801724,1758048661459,-2024.73723638,0.00022223,2]
[385801725,1758048661469,-4124.10188313,0.00022228,2]
[385801726,1758048661478,-600.0,0.00022251,20]
[385801727,1758048661487,-151.0,0.000223,5]
[385801728,1758048661497,-4124.10188313,0.00022365,2]
[385801729,1758048661506,-800.0,0.00022374,7]
[385801730,1758048661515,-492.0,0.00022391,2]
[385801731,1758048661525,-1271.65908398,0.00022398,2]
[385801732,1758048661534,-151.0,0.000224,9]
[385801733,1758048661544,-151.0,0.000224,7]
[385801734,1758048661554,-500.0,0.00022465,2]
[385801735,1758048661564,-246.00064271,0.00022465,2]
[385801736,1758048661573,-277.15,0.00022465,2]
[385801737,1758048661582,-240.60664321,0.00022465,2]
[385801738,1758048661592,-151.0,0.00022465,2]
[385801739,1758048661601,-500.0,0.00022465,2]
[385801740,1758048661610,-500.0,0.00022465,2]
[385801741,1758048661620,-151.0,0.00022465,2]
[385801742,1758048661630,-151.0,0.00022465,2]
[385801743,1758048661640,-500.0,0.00022465,2]
[385801744,1758048661649,-151.0,0.00022465,2]
[385801745,1758048661659,-500.0,0.00022465,2]
[385801746,1758048661668,-500.0,0.00022465,2]
[385801747,1758048661678,-775.0,0.00022465,2]
[385801748,1758048661687,-500.0,0.00022465,2]
[385801749,1758048661697,-500.0,0.00022465,2]
[385801750,1758048661706,-295.99239349,0.00022465,2]
[385801751,1758048661715,-500.0,0.00022465,2]
[385801752,1758048661725,-157.0,0.00022465,2]
[385801753,1758048661735,-151.0,0.00022465,2]
[385801754,1758048661744,-500.0,0.00022465,2]
[385801755,1758048661753,-480.0,0.00022465,3]
[385801756,1758048661762,-480.0,0.00022465,3]
[385801757,1758048661771,-480.0,0.00022465,3]
[385801758,1758048661780,-331.08348124,0.00022465,3]
[385801759,1758048661790,-480.0,0.00022465,3]
[385801760,1758048661799,-614.94940642,0.00022465,3]
[385801761,1758048661808,-480.0,0.00022465,3]
[385801762,1758048661817,-480.0,0.00022465,3]
[385801763,1758048661826,-480.0,0.00022465,3]
[385801764,1758048661836,-480.0,0.00022465,3]
[385801765,1758048661846,-480.0,0.00022465,3]
[385801766,1758048661856,-480.0,0.00022465,3]
[385801767,1758048661866,-502.71165054,0.00022465,3]
[385801768,1758048661875,-480.0,0.00022465,3]
[385801769,1758048661884,-480.0,0.00022465,3]
[385801770,1758048661893,-439.38545475,0.00022465,3]
[385801771,1758048661903,-480.0,0.00022465,3]
[385801772,1758048661912,-480.0,0.00022465,3]
[385801773,1758048661921,-480.0,0.00022465,3]
[385801774,1758048661930,-480.0,0.00022465,3]
[385801775,1758048661939,-480.0,0.00022465,3]
[385801776,1758048661948,-480.0,0.00022465,3]
[385801777,1758048661957,-480.0,0.00022465,3]
[385801778,1758048661966,-480.0,0.00022465,3]
[385801779,1758048661975,-480.0,0.00022465,3]
[385801780,1758048661984,-480.0,0.00022465,3]
[385801781,1758048661993,-480.0,0.00022465,3]
[385801782,1758048662002,-480.0,0.00022465,3]
[385801783,1758048662011,-480.0,0.00022465,3]
[385801784,1758048662024,-480.0,0.00022465,3]
[385801785,1758048662033,-480.0,0.00022465,3]
[385801786,1758048662042,-480.0,0.00022465,3]
[385801787,1758048662051,-480.0,0.00022465,3]
[385801788,1758048662060,-480.0,0.00022465,3]
[385801789,1758048662070,-480.0,0.00022465,3]
[385801790,1758048662079,-480.0,0.00022465,3]
[385801791,1758048662089,-480.0,0.00022465,3]
[385801792,1758048662102,-480.0,0.00022465,3]
[385801793,1758048662112,-480.0,0.00022465,3]
[385801794,1758048662122,-480.0,0.00022465,3]
[385801795,1758048662131,-480.0,0.00022465,3]
[385801796,1758048662139,-480.0,0.00022465,3]
[385801797,1758048662149,-480.0,0.00022465,3]
[385801798,1758048662158,-480.0,0.00022465,3]
[385801799,1758048662168,-434.95350348,0.00022465,3]
[385801800,1758048662178,-480.0,0.00022465,3]
[385801801,1758048662188,-480.0,0.00022465,3]
[385801802,1758048662198,-535.73083627,0.00022465,3]
[385801803,1758048662207,-480.0,0.00022465,3]
[385801804,1758048662216,-480.0,0.00022465,3]
[385801805,1758048662225,-480.0,0.00022465,3]
[385801806,1758048662234,-480.0,0.00022465,3]
[385801807,1758048662244,-480.0,0.00022465,3]
[385801808,1758048662253,-480.0,0.00022465,3]
[385801809,1758048662263,-480.0,0.00022465,3]
[385801810,1758048662272,-480.0,0.00022465,3]
[385801811,1758048662282,-480.0,0.00022465,3]
[385801812,1758048662291,-480.0,0.00022465,3]
[385801813,1758048662300,-932.84,0.00022465,3]
[385801814,1758048662309,-491.7,0.00022465,3]
[385801815,1758048662319,-480.0,0.00022465,3]
[385801816,1758048662328,-480.0,0.00022465,3]
[385801817,1758048662337,-526.94,0.00022465,3]
[385801818,1758048662346,-480.0,0.00022465,3]
[385801819,1758048662417,-504.67595141,0.00022465,3]
[385801820,1758048662426,-480.0,0.00022465,3]
[385801821,1758048662436,-480.0,0.00022465,3]
[385801822,1758048662445,-494.38489727,0.00022465,3]
[385801823,1758048662454,-480.0,0.00022465,3]
[385801824,1758048662464,-336.77911501,0.00022465,3]
[385801825,1758048662473,-480.0,0.00022465,3]
[385801826,1758048662482,-480.0,0.00022465,3]
[385801827,1758048662492,-480.0,0.00022465,3]
[385801828,1758048662501,-480.0,0.00022465,3]
[385801829,1758048662510,-480.0,0.00022465,3]
[385801830,1758048662519,-480.0,0.00022465,3]
[385801831,1758048662529,-480.0,0.00022465,3]
[385801832,1758048662538,-480.0,0.00022465,3]
[385801833,1758048662548,-532.36394045,0.00022465,3]
[385801834,1758048662558,-480.0,0.00022465,3]
[385801835,1758048662567,-480.0,0.00022465,3]
[385801836,1758048662577,-480.0,0.00022465,3]
[385801837,1758048662586,-399.73907418,0.00022465,3]
[385801838,1758048662595,-480.0,0.00022465,3]
[385801839,1758048662605,-480.0,0.00022465,3]
[385801840,1758048662614,-480.0,0.00022465,3]
[385801841,1758048662623,-628.78393172,0.00022465,3]
[385801842,1758048662633,-480.0,0.00022465,3]
[385801843,1758048662642,-480.0,0.00022465,3]
[385801844,1758048662652,-480.0,0.00022465,3]
[385801845,1758048662661,-480.0,0.00022465,3]
[385801846,1758048662670,-480.0,0.00022465,3]
[385801847,1758048662680,-480.0,0.00022465,3]
[385801848,1758048662689,-480.0,0.00022465,3]
[385801849,1758048662699,-480.0,0.00022465,3]
[385801850,1758048662708,-480.0,0.00022465,3]
[385801851,1758048662717,-480.0,0.00022465,3]
[385801852,1758048662727,-758.68,0.00022465,3]
[385801853,1758048662736,-480.0,0.00022465,3]
[385801854,1758048662746,-480.0,0.00022465,3]
[385801855,1758048662756,-480.0,0.00022465,3]
[385801856,1758048662765,-3370.57,0.00022465,3]
[385801857,1758048662775,-480.0,0.00022465,3]
[385801858,1758048662784,-480.0,0.00022465,3]
[385801859,1758048662793,-480.0,0.00022465,3]
[385801860,1758048662802,-480.0,0.00022465,3]
[385801861,1758048662812,-480.0,0.00022465,3]
[385801862,1758048662821,-480.0,0.00022465,3]
[385801863,1758048662830,-480.0,0.00022465,3]
[385801864,1758048662839,-480.0,0.00022465,3]
[385801865,1758048662849,-480.0,0.00022465,3]
[385801866,1758048662858,-480.0,0.00022465,3]
[385801867,1758048662867,-480.0,0.00022465,3]
[385801868,1758048662876,-507.12464074,0.00022465,3]
[385801869,1758048662885,-480.0,0.00022465,3]
[385801870,1758048662894,-480.0,0.00022465,3]
[385801871,1758048662903,-480.0,0.00022465,3]
[385801872,1758048662920,-480.0,0.00022465,3]
[385801873,1758048662937,-480.0,0.00022465,3]
[385801874,1758048662953,-480.0,0.00022465,3]
[385801875,1758048662971,-480.0,0.00022465,3]
[385801876,1758048662990,-480.0,0.00022465,3]
[385801877,1758048663006,-480.0,0.00022465,3]
[385801878,1758048663025,-480.0,0.00022465,3]
[385801879,1758048663042,-480.0,0.00022465,3]
[385801880,1758048663056,-501.58141793,0.00022465,3]
[385801881,1758048663074,-483.58928266,0.00022465,3]
[385801882,1758048663093,-480.0,0.00022465,3]
[385801883,1758048663111,-480.0,0.00022465,3]
[385801884,1758048663123,-498.4,0.00022465,3]
[385801885,1758048663141,-480.0,0.00022465,3]
[385801886,1758048663158,-480.0,0.00022465,3]
[385801887,1758048663174,-480.0,0.00022465,3]
[385801888,1758048663188,-480.0,0.00022465,3]
[385801889,1758048663202,-480.0,0.00022465,3]
[385801890,1758048663217,-480.0,0.00022465,3]
[385801891,1758048663232,-448.65372673,0.00022465,3]
[385801892,1758048663247,-480.0,0.00022465,3]
[385801893,1758048663262,-480.0,0.00022465,3]
[385801894,1758048663276,-480.0,0.00022465,3]
[385801895,1758048663290,-480.0,0.00022465,3]
[385801896,1758048663304,-480.0,0.00022465,3]
[385801897,1758048663319,-709.53,0.00022465,3]
[385801898,1758048663333,-480.0,0.00022465,3]
[385801899,1758048663347,-480.0,0.00022465,3]
[385801900,1758048663363,-480.0,0.00022465,3]
[385801901,1758048663379,-469.88258194,0.00022465,3]
[385801902,1758048663395,-480.0,0.00022465,3]
[385801903,1758048663410,-839.72,0.00022465,3]
[385801904,1758048663426,-185.26996645,0.00022465,3]
[385801905,1758048663442,-480.0,0.00022465,3]
[385801906,1758048663456,-480.0,0.00022465,3]
[385801907,1758048663472,-480.0,0.00022465,3]
[385801908,1758048663487,-480.0,0.00022465,3]
[385801909,1758048663503,-552.86,0.00022465,3]
[385801910,1758048663517,-1015.41,0.00022465,3]
[385801911,1758048663532,-480.0,0.00022465,3]
[385801912,1758048663548,-480.0,0.00022465,3]
[385801913,1758048663562,-480.0,0.00022465,3]
[385801914,1758048663576,-480.0,0.00022465,3]
[385801915,1758048663591,-480.0,0.00022465,3]
[385801916,1758048663606,-480.0,0.00022465,3]
[385801917,1758048663620,-480.0,0.00022465,3]
[385801918,1758048663634,-480.0,0.00022465,3]
[385801919,1758048663648,-480.0,0.00022465,3]
[385801920,1758048663663,-480.0,0.00022465,3]
[385801921,1758048663672,-480.0,0.00022465,3]
[385801922,1758048663682,-480.0,0.00022465,3]
[385801923,1758048663691,-480.0,0.00022465,3]
[385801924,1758048663701,-480.0,0.00022465,3]
[385801925,1758048663827,-300.0,0.00022465,2]
[385801926,1758048663849,-480.0,0.00022465,3]
[385801927,1758048663859,-480.0,0.00022465,3]
[385801928,1758048663869,-480.0,0.00022465,3]
[385801929,1758048663878,-480.0,0.00022465,3]
[385801930,1758048663888,-2753.17,0.00022465,3]
[385801931,1758048663898,-480.0,0.00022465,3]
[385801932,1758048663908,-480.0,0.00022465,3]
[385801933,1758048663917,-480.0,0.00022465,3]
[385801934,1758048663927,-480.0,0.00022465,3]
[385801935,1758048663938,-480.0,0.00022465,3]
[385801936,1758048663947,-480.0,0.00022465,3]
[385801937,1758048663956,-480.0,0.00022465,3]
[385801938,1758048663965,-480.0,0.00022465,3]
[385801939,1758048663975,-480.0,0.00022465,3]
[385801940,1758048663985,-480.0,0.00022465,3]
[385801941,1758048663994,-755.55,0.00022465,3]
[385801942,1758048664003,-480.0,0.00022465,3]
[385801943,1758048664013,-480.0,0.00022465,3]
[385801944,1758048664026,-3203.63,0.00022465,3]
[385801945,1758048664035,-480.0,0.00022465,3]
[385801946,1758048664045,-480.0,0.00022465,3]
[385801947,1758048664054,-598.45,0.00022465,3]
[385801948,1758048664066,-480.0,0.00022465,3]
[385801949,1758048664075,-1601.9,0.00022465,3]
[385801950,1758048664085,-480.0,0.00022465,3]
[385801951,1758048664094,-11405.1,0.00022465,3]
[385801952,1758048664106,-482.81032973,0.00022465,3]
[385801953,1758048664115,-4251.02,0.00022465,3]
[385801954,1758048664124,-480.0,0.00022465,3]
[385801955,1758048664133,-480.0,0.00022465,3]
[385801956,1758048664143,-480.0,0.00022465,3]
[385801957,1758048664152,-480.0,0.00022465,3]
[385801958,1758048664161,-1383.17,0.00022465,3]
[385801959,1758048664171,-580.87,0.00022465,3]
[385801960,1758048664180,-594.18,0.00022465,3]
[385801961,1758048664191,-795.82,0.00022465,3]
[385801962,1758048664200,-480.0,0.00022465,3]
[385801963,1758048664210,-480.0,0.00022465,3]
[385801964,1758048664219,-480.0,0.00022465,3]
[385801965,1758048664228,-1128.82,0.00022465,3]
[385801966,1758048664237,-1005.44,0.00022465,3]
[385801967,1758048664246,-480.0,0.00022465,3]
[385801968,1758048664256,-480.0,0.00022465,3]
[385801969,1758048664265,-480.0,0.00022465,3]
[385801970,1758048664274,-497.98681952,0.00022465,3]
[385801971,1758048664283,-1129.28,0.00022465,3]
[385801972,1758048664293,-480.0,0.00022465,3]
[385801973,1758048664302,-480.0,0.00022465,3]
[385801974,1758048664312,-480.0,0.00022465,3]
[385801975,1758048664321,-480.0,0.00022465,3]
[385801976,1758048664331,-480.0,0.00022465,3]
[385801977,1758048664340,-480.0,0.00022465,3]
[385801978,1758048664350,-480.0,0.00022465,3]
[385801979,1758048664359,-480.0,0.00022465,3]
[385801980,1758048664369,-480.0,0.00022465,3]
[385801981,1758048664378,-480.0,0.00022465,3]
[385801982,1758048664387,-480.0,0.00022465,3]
[385801983,1758048664396,-480.0,0.00022465,3]
[385801984,1758048664405,-480.0,0.00022465,3]
[385801985,1758048664414,-510.47,0.00022465,3]
[385801986,1758048664423,-480.0,0.00022465,3]
[385801987,1758048664433,-2064.64,0.00022465,3]
[385801988,1758048664442,-480.0,0.00022465,3]
[385801989,1758048664451,-480.0,0.00022465,3]
[385801990,1758048664460,-480.0,0.00022465,3]
[385801991,1758048664469,-480.0,0.00022465,3]
[385801992,1758048664479,-480.0,0.00022465,3]
[385801993,1758048664488,-480.0,0.00022465,3]
[385801994,1758048664497,-480.0,0.00022465,3]
[385801995,1758048664507,-480.0,0.00022465,3]
[385801996,1758048664516,-480.0,0.00022465,3]
[385801997,1758048664525,-488.47068157,0.00022465,3]
[385801998,1758048664535,-1811.84,0.00022465,3]
[385801999,1758048664545,-480.0,0.00022465,3]
[385802000,1758048664554,-480.0,0.00022465,3]
[385802001,1758048664564,-480.0,0.00022465,3]
[385802002,1758048664573,-480.0,0.00022465,3]
[385802003,1758048664583,-1388.05,0.00022465,3]
[385802004,1758048664592,-480.0,0.00022465,3]
[385802005,1758048664601,-480.0,0.00022465,3]
[385802006,1758048664610,-480.0,0.00022465,3]
[385802007,1758048664619,-483.90666192,0.00022465,3]
[385802008,1758048664628,-480.0,0.00022465,3]
[385802009,1758048664638,-488.42,0.00022465,3]
[385802010,1758048664647,-480.0,0.00022465,3]
[385802011,1758048664656,-480.0,0.00022465,3]
[385802012,1758048664666,-480.0,0.00022465,3]
[385802013,1758048664675,-480.0,0.00022465,3]
[385802014,1758048664684,-480.0,0.00022465,3]
[385802015,1758048664693,-480.0,0.00022465,3]
[385802016,1758048664702,-480.0,0.00022465,3]
[385802017,1758048664712,-480.0,0.00022465,3]
[385802018,1758048664721,-480.0,0.00022465,3]
[385802019,1758048664730,-480.0,0.00022465,3]
[385802020,1758048664739,-3095.8,0.00022465,3]
[385802021,1758048664748,-480.0,0.00022465,3]
[385802022,1758048664757,-480.0,0.00022465,3]
[385802023,1758048664766,-489.98,0.00022465,3]
[385802024,1758048664775,-480.0,0.00022465,3]
[385802025,1758048664784,-610.65,0.00022465,3]
[385802026,1758048664794,-480.0,0.00022465,3]
[385802027,1758048664803,-480.0,0.00022465,3]
[385802028,1758048664812,-480.0,0.00022465,3]
[385802029,1758048664822,-480.0,0.00022465,3]
[385802030,1758048664831,-480.0,0.00022465,3]
[385802031,1758048664840,-482.41,0.00022465,3]
[385802032,1758048664850,-480.0,0.00022465,3]
[385802033,1758048664859,-624.2,0.00022465,3]
[385802034,1758048664868,-533.69,0.00022465,3]
[385802035,1758048664877,-489.20108789,0.00022465,3]
[385802036,1758048664886,-480.0,0.00022465,3]
[385802037,1758048664895,-1505.7,0.00022465,3]
[385802038,1758048664904,-480.0,0.00022465,3]
[385802039,1758048664914,-480.0,0.00022465,3]
[385802040,1758048664923,-480.0,0.00022465,3]
[385802041,1758048664933,-480.0,0.00022465,3]
[385802042,1758048664943,-480.0,0.00022465,3]
[385802043,1758048664951,-515.02,0.00022465,3]
[385802044,1758048664961,-480.0,0.00022465,3]
[385802045,1758048664971,-7171.03,0.00022465,3]
[385802046,1758048664981,-1449.96,0.00022465,3]
[385802047,1758048664990,-568.35,0.00022465,3]
[385802048,1758048664999,-480.0,0.00022465,3]
[385802049,1758048665009,-480.0,0.00022465,3]
[385802050,1758048665018,-486.24484928,0.00022465,3]
[385802051,1758048665031,-1505.76,0.00022465,3]
[385802052,1758048665040,-1076.45,0.00022465,3]
[385802053,1758048665051,-480.0,0.00022465,3]
[385802054,1758048665060,-480.0,0.00022465,3]
[385802055,1758048665069,-480.0,0.00022465,3]
[385802056,1758048665079,-480.0,0.00022465,3]
[385802057,1758048665088,-480.0,0.00022465,3]
[385802058,1758048665098,-480.0,0.00022465,2]
[385802059,1758048665109,-480.0,0.00022465,3]
[385802060,1758048665118,-480.0,0.00022465,3]
[385802061,1758048665127,-537.21,0.00022465,3]
[385802062,1758048665136,-480.0,0.00022465,3]
[385802063,1758048665145,-480.0,0.00022465,3]
[385802064,1758048665154,-551.99553795,0.00022465,3]
[385802065,1758048665164,-1412.92,0.00022465,3]
[385802066,1758048665173,-480.0,0.00022465,3]
[385802067,1758048665182,-613.44,0.00022465,3]
[385802068,1758048665191,-439.93002383,0.00022465,3]
[385802069,1758048714731,233.52813159,0.000199,2]
[385802070,1758048714757,1034.91809567,0.000199,2]
[385802071,1758048714797,1268.44622704,0.00021149,2]
[385802072,1758048902719,1367.60189137,0.000199,2]
[385802073,1758048902807,1367.60189134,0.00021149,2]
[385802074,1758048935171,199.0,0.00020949,2]
[385802076,1758049054958,192.162647,0.000207,2]
[385802079,1758049091825,1329.47376503,0.000199,2]
[385802080,1758049091899,1329.47376497,0.00021149,2]
[385802081,1758049118239,-199.0,0.00021152,2]
[385802082,1758049118268,-500.03387439,0.000212,2]
[385802083,1758049118297,-199.0,0.00021597,2]
[385802084,1758049118325,-300.0,0.00021624,2]
[385802085,1758049118754,-83.83233771,0.00021625,2]
[385802086,1758049127982,-10000.01,0.00021625,2]
[385802087,1758049128138,-3214.67809953,0.00021625,2]
[385802088,1758049128168,-199.0,0.00021677,2]
[385802089,1758049128198,-199.0,0.00021681,2]
[385802090,1758049128231,-1200.0,0.00021714,2]
[385802091,1758049128260,-186.86597478,0.00021714,2]
[385802092,1758049128340,-0.92185138,0.00021714,2]
[385802093,1758049128368,-500.0,0.00021714,2]
[385802094,1758049128400,-500.0,0.00021714,2]
[385802095,1758049128429,-500.0,0.00021714,2]
[385802096,1758049128462,-500.0,0.00021714,2]
[385802097,1758049128500,-500.0,0.00021714,2]
[385802098,1758049128529,-500.0,0.00021714,2]
[385802099,1758049128562,-500.0,0.00021714,2]
[385802100,1758049128591,-268.81114375,0.00021714,2]
[385802101,1758049128620,-407.55151828,0.00021714,2]
[385802102,1758049128655,-154.35459208,0.00021714,2]
[385802103,1758049128683,-500.0,0.00021714,2]